[Event "Early-Titled-Tuesday-Blitz-February-27-2024"]
[Site "Chess.com"]
[Date "2024.02.27"]
[Round "5"]
[White "Alex_Sahakyan2006"]
[Black "DonMicheleCorleone"]
[Result "1-0"]
[WhiteElo "2830"]
[BlackElo "2519"]
[TimeControl "180+1"]
[EndTime "8:53:35 PST"]
[Termination "Alex_Sahakyan2006 won by resignation"]

1. e4 {[%clk 0:03:00.9]} 1... e6 {[%clk 0:03:00.2]} 2. d4 {[%clk 0:02:58.9]}
2... d5 {[%clk 0:03:00.6]} 3. exd5 {[%clk 0:02:59.8]} 3... exd5 {[%clk
0:03:00.7]} 4. Nf3 {[%clk 0:03:00.7]} 4... Bd6 {[%clk 0:03:00.8]} 5. Nc3 {[%clk
0:03:01.1]} 5... c6 {[%clk 0:02:59.9]} 6. Bd3 {[%clk 0:03:01.8]} 6... Ne7 {[%clk
0:02:56.8]} 7. Ne2 {[%clk 0:03:01.6]} 7... O-O {[%clk 0:02:55.2]} 8. O-O {[%clk
0:03:01.5]} 8... Bf5 {[%clk 0:02:53.1]} 9. Ng3 {[%clk 0:03:01.6]} 9... Bxd3
{[%clk 0:02:53]} 10. Qxd3 {[%clk 0:03:02.5]} 10... Qd7 {[%clk 0:02:41.7]} 11.
Re1 {[%clk 0:03:01.5]} 11... Na6 {[%clk 0:02:37.8]} 12. c3 {[%clk 0:03:01.5]}
12... Nc7 {[%clk 0:02:35.9]} 13. Ng5 {[%clk 0:02:48.8]} 13... Ng6 {[%clk
0:02:35.2]} 14. Nf5 {[%clk 0:02:39.1]} 14... Ne6 {[%clk 0:02:30.4]} 15. Qh3
{[%clk 0:02:25.9]} 15... h6 {[%clk 0:02:22.8]} 16. Nxe6 {[%clk 0:02:10]} 16...
fxe6 {[%clk 0:02:21.9]} 17. Rxe6 {[%clk 0:02:09.1]} 17... Bf4 {[%clk 0:02:06.8]}
18. Nxh6+ {[%clk 0:01:44.4]} 18... Bxh6 {[%clk 0:02:02.8]} 19. Bxh6 {[%clk
0:01:43.3]} 19... Qf7 {[%clk 0:01:20.1]} 20. Be3 {[%clk 0:01:35.1]} 20... Nf4
{[%clk 0:01:13.4]} 21. Bxf4 {[%clk 0:01:31.1]} 21... Qxf4 {[%clk 0:01:14.3]} 22.
Qe3 {[%clk 0:01:28.1]} 22... Qf5 {[%clk 0:01:12.6]} 23. Re5 {[%clk 0:01:19.1]}
23... Qc2 {[%clk 0:01:11.7]} 24. Qe2 {[%clk 0:01:18.1]} 24... Qa4 {[%clk
0:01:10.3]} 25. a3 {[%clk 0:01:17.1]} 25... Rf7 {[%clk 0:01:09.2]} 26. Re1
{[%clk 0:01:15.7]} 26... Raf8 {[%clk 0:01:09.2]} 27. Re8 {[%clk 0:01:12.4]}
27... Qb3 {[%clk 0:01:07.8]} 28. Qe6 {[%clk 0:01:06.1]} 28... Kh7 {[%clk
0:00:41.6]} 29. Rxf8 {[%clk 0:00:59.2]} 29... Rxf8 {[%clk 0:00:42.5]} 30. Qe2
{[%clk 0:00:58.4]} 30... Rf6 {[%clk 0:00:40.6]} 31. g3 {[%clk 0:00:58]} 31... b5
{[%clk 0:00:39.2]} 32. Qd3+ {[%clk 0:00:56.9]} 32... Kg8 {[%clk 0:00:37.6]} 33.
Qe2 {[%clk 0:00:53.5]} 33... Kh7 {[%clk 0:00:30.4]} 34. Qh5+ {[%clk 0:00:53.1]}
34... Rh6 {[%clk 0:00:27.8]} 35. Qf5+ {[%clk 0:00:53.3]} 35... Rg6 {[%clk
0:00:25.8]} 36. Re6 {[%clk 0:00:51.7]} 36... Qd1+ {[%clk 0:00:26]} 37. Kg2
{[%clk 0:00:51.9]} 37... Qg4 {[%clk 0:00:25.8]} 38. Qxg6+ {[%clk 0:00:51.8]}
38... Qxg6 {[%clk 0:00:26]} 39. Rxg6 {[%clk 0:00:52.7]} 39... Kxg6 {[%clk
0:00:26.8]} 40. b4 {[%clk 0:00:50.6]} 40... Kf5 {[%clk 0:00:25.7]} 41. Kf3
{[%clk 0:00:50.9]} 41... g5 {[%clk 0:00:26.1]} 42. g4+ {[%clk 0:00:50.2]} 42...
Ke6 {[%clk 0:00:26.1]} 43. Kg3 {[%clk 0:00:51]} 43... Kf6 {[%clk 0:00:26.6]} 44.
h4 {[%clk 0:00:51.2]} 44... Kg6 {[%clk 0:00:26.7]} 45. hxg5 {[%clk 0:00:51.4]}
45... Kxg5 {[%clk 0:00:27.6]} 46. f4+ {[%clk 0:00:52.3]} 46... Kg6 {[%clk
0:00:28]} 47. Kh4 {[%clk 0:00:52.7]} 47... Kh6 {[%clk 0:00:28.9]} 48. f5 {[%clk
0:00:53.4]} 48... Kg7 {[%clk 0:00:29.2]} 49. g5 {[%clk 0:00:54]} 49... Kf7
{[%clk 0:00:30.1]} 50. Kg4 {[%clk 0:00:54.8]} 1-0

[Event "Early-Titled-Tuesday-Blitz-February-27-2024"]
[Site "Chess.com"]
[Date "2024.02.27"]
[Round "5"]
[White "tarno17"]
[Black "whiteglovethief"]
[Result "0-1"]
[WhiteElo "2143"]
[BlackElo "2497"]
[TimeControl "180+1"]
[EndTime "8:53:37 PST"]
[Termination "whiteglovethief won on time"]

1. e4 {[%clk 0:03:00.9]} 1... e6 {[%clk 0:02:58.5]} 2. d4 {[%clk 0:03:00.5]}
2... d5 {[%clk 0:02:57.9]} 3. Nd2 {[%clk 0:03:01]} 3... c5 {[%clk 0:02:57.7]} 4.
exd5 {[%clk 0:02:57.5]} 4... exd5 {[%clk 0:02:58.6]} 5. Bb5+ {[%clk 0:02:55.2]}
5... Nc6 {[%clk 0:02:57.9]} 6. Ne2 {[%clk 0:02:51.5]} 6... Bd6 {[%clk
0:02:58.3]} 7. Nf3 {[%clk 0:02:49]} 7... Nf6 {[%clk 0:02:53.6]} 8. O-O {[%clk
0:02:48.3]} 8... O-O {[%clk 0:02:51.9]} 9. Bg5 {[%clk 0:02:45]} 9... Bg4 {[%clk
0:02:49.5]} 10. Bxc6 {[%clk 0:02:22.5]} 10... bxc6 {[%clk 0:02:50.4]} 11. Ng3
{[%clk 0:02:14.5]} 11... h6 {[%clk 0:02:47.2]} 12. Be3 {[%clk 0:01:58.6]} 12...
cxd4 {[%clk 0:02:45.1]} 13. Bxd4 {[%clk 0:01:56.3]} 13... Bxg3 {[%clk
0:02:36.6]} 14. fxg3 {[%clk 0:01:52]} 14... Ne4 {[%clk 0:02:35.4]} 15. b4 {[%clk
0:01:06.4]} 15... a5 {[%clk 0:02:30.2]} 16. c3 {[%clk 0:00:56.7]} 16... axb4
{[%clk 0:02:24.7]} 17. cxb4 {[%clk 0:00:57.6]} 17... Qb8 {[%clk 0:02:23.5]} 18.
a3 {[%clk 0:00:54.5]} 18... Qb5 {[%clk 0:02:16.3]} 19. Qc2 {[%clk 0:00:47.4]}
19... Bxf3 {[%clk 0:02:08.2]} 20. Rxf3 {[%clk 0:00:42.3]} 20... f5 {[%clk
0:01:57.6]} 21. Raf1 {[%clk 0:00:40]} 21... Qc4 {[%clk 0:01:47.7]} 22. Qb2
{[%clk 0:00:25.5]} 22... g6 {[%clk 0:01:43.1]} 23. Bh8 {[%clk 0:00:18.3]} 23...
Rf7 {[%clk 0:01:42.2]} 24. g4 {[%clk 0:00:17.4]} 24... Kh7 {[%clk 0:01:31.8]}
25. gxf5 {[%clk 0:00:13.4]} 25... g5 {[%clk 0:01:21.3]} 26. Be5 {[%clk
0:00:08.3]} 26... Re8 {[%clk 0:01:14.1]} 27. Bc7 {[%clk 0:00:05.9]} 27... Rxc7
{[%clk 0:01:11.8]} 28. Kh1 {[%clk 0:00:03.3]} 28... Rf7 {[%clk 0:01:09.2]} 29.
h3 {[%clk 0:00:03.8]} 29... Ng3+ {[%clk 0:01:05.8]} 30. Kg1 {[%clk 0:00:02]}
30... Nxf1 {[%clk 0:01:04.5]} 31. Rxf1 {[%clk 0:00:02.9]} 31... Qe2 {[%clk
0:01:02.2]} 32. Qb1 {[%clk 0:00:02.6]} 32... Re4 {[%clk 0:00:57.8]} 33. f6
{[%clk 0:00:02.1]} 33... Kg6 {[%clk 0:00:50.1]} 34. a4 {[%clk 0:00:01.1]} 34...
Rxf6 {[%clk 0:00:48.8]} 35. Rxf6+ {[%clk 0:00:01.3]} 35... Kxf6 {[%clk
0:00:49.7]} 36. Qa1+ {[%clk 0:00:01.5]} 36... d4 {[%clk 0:00:49]} 37. Qa3 {[%clk
0:00:01.1]} 37... Qe3+ {[%clk 0:00:48.6]} 0-1

[Event "Early-Titled-Tuesday-Blitz-February-27-2024"]
[Site "Chess.com"]
[Date "2024.02.27"]
[Round "5"]
[White "MusicCityMaster"]
[Black "JJDAREK"]
[Result "0-1"]
[WhiteElo "2553"]
[BlackElo "2424"]
[TimeControl "180+1"]
[EndTime "8:53:39 PST"]
[Termination "JJDAREK won by resignation"]

1. d4 {[%clk 0:03:00.9]} 1... d6 {[%clk 0:02:59.9]} 2. Nf3 {[%clk 0:02:59.6]}
2... g6 {[%clk 0:02:59.4]} 3. c4 {[%clk 0:02:58.9]} 3... Bg7 {[%clk 0:02:59]} 4.
Nc3 {[%clk 0:02:55.2]} 4... e5 {[%clk 0:02:59.1]} 5. e4 {[%clk 0:02:54.5]} 5...
Bg4 {[%clk 0:02:56.5]} 6. dxe5 {[%clk 0:02:51.9]} 6... dxe5 {[%clk 0:02:57.4]}
7. Qxd8+ {[%clk 0:02:50.5]} 7... Kxd8 {[%clk 0:02:58.3]} 8. Be2 {[%clk
0:02:48.3]} 8... f6 {[%clk 0:02:00.7]} 9. Be3 {[%clk 0:02:43.6]} 9... c6 {[%clk
0:01:56.5]} 10. O-O-O+ {[%clk 0:02:43]} 10... Ke8 {[%clk 0:01:49.4]} 11. Rd2
{[%clk 0:02:34.2]} 11... Bh6 {[%clk 0:01:41.9]} 12. Bxh6 {[%clk 0:02:25.1]}
12... Nxh6 {[%clk 0:01:42.8]} 13. h3 {[%clk 0:02:13.9]} 13... Be6 {[%clk
0:01:41.5]} 14. Rhd1 {[%clk 0:02:13.6]} 14... Nf7 {[%clk 0:01:40.1]} 15. Kb1
{[%clk 0:02:09]} 15... Nd7 {[%clk 0:01:38]} 16. Na4 {[%clk 0:02:00.9]} 16... Ke7
{[%clk 0:01:33.5]} 17. b3 {[%clk 0:01:58.6]} 17... Rhd8 {[%clk 0:01:33]} 18. Ne1
{[%clk 0:01:56.2]} 18... Nb6 {[%clk 0:01:12.2]} 19. Nc5 {[%clk 0:01:55.5]} 19...
Rxd2 {[%clk 0:01:10]} 20. Rxd2 {[%clk 0:01:56.4]} 20... Rd8 {[%clk 0:01:05.8]}
21. Kc1 {[%clk 0:01:51.8]} 21... Rxd2 {[%clk 0:01:03.3]} 22. Kxd2 {[%clk
0:01:52.7]} 22... Bc8 {[%clk 0:01:03.3]} 23. Nc2 {[%clk 0:01:51.5]} 23... Nd7
{[%clk 0:00:57.5]} 24. Nd3 {[%clk 0:01:46]} 24... Nd6 {[%clk 0:00:55.9]} 25. f3
{[%clk 0:01:45.3]} 25... b6 {[%clk 0:00:55.7]} 26. Ncb4 {[%clk 0:01:44.3]} 26...
Bb7 {[%clk 0:00:54.9]} 27. a4 {[%clk 0:01:33]} 27... c5 {[%clk 0:00:54.1]} 28.
Nd5+ {[%clk 0:01:31.8]} 28... Bxd5 {[%clk 0:00:54.6]} 29. cxd5 {[%clk
0:01:31.6]} 29... c4 {[%clk 0:00:51.9]} 30. Nb4 {[%clk 0:01:28.6]} 30... cxb3
{[%clk 0:00:48.4]} 31. Nc6+ {[%clk 0:01:28.7]} 31... Ke8 {[%clk 0:00:48.6]} 32.
Nxa7 {[%clk 0:01:27.3]} 32... Nc5 {[%clk 0:00:47.8]} 33. Nb5 {[%clk 0:01:24.7]}
33... Ke7 {[%clk 0:00:46.1]} 34. Nxd6 {[%clk 0:01:22.2]} 34... Kxd6 {[%clk
0:00:47]} 35. Bb5 {[%clk 0:01:22.3]} 35... f5 {[%clk 0:00:41.8]} 36. Kc3 {[%clk
0:01:21.1]} 36... fxe4 {[%clk 0:00:41.5]} 37. fxe4 {[%clk 0:01:21.3]} 37...
Nxe4+ {[%clk 0:00:41.7]} 38. Kxb3 {[%clk 0:01:21.6]} 38... Kxd5 {[%clk
0:00:40.7]} 39. Bc4+ {[%clk 0:01:21.7]} 39... Kc5 {[%clk 0:00:39.3]} 40. Bg8
{[%clk 0:01:17.6]} 40... Nf6 {[%clk 0:00:39]} 41. Be6 {[%clk 0:01:17]} 41... e4
{[%clk 0:00:39]} 42. Kc3 {[%clk 0:01:17.2]} 42... e3 {[%clk 0:00:32.9]} 43. Kd3
{[%clk 0:01:16.8]} 43... Kb4 {[%clk 0:00:33]} 44. Kxe3 {[%clk 0:01:14.7]} 44...
Kxa4 {[%clk 0:00:33.7]} 45. Kf4 {[%clk 0:01:15]} 45... b5 {[%clk 0:00:30.4]} 46.
Kg5 {[%clk 0:01:15.2]} 46... Ne4+ {[%clk 0:00:29.7]} 47. Kh6 {[%clk 0:01:15.4]}
47... b4 {[%clk 0:00:27.4]} 48. Kxh7 {[%clk 0:01:15]} 48... Ng5+ {[%clk
0:00:27.6]} 49. Kxg6 {[%clk 0:01:14.3]} 49... Nxe6 {[%clk 0:00:28.5]} 50. h4
{[%clk 0:01:14.3]} 50... b3 {[%clk 0:00:29.2]} 51. h5 {[%clk 0:01:14.6]} 51...
Nf4+ {[%clk 0:00:29.1]} 52. Kg5 {[%clk 0:01:14.2]} 52... Nxh5 {[%clk 0:00:29.8]}
0-1

[Event "Early-Titled-Tuesday-Blitz-February-27-2024"]
[Site "Chess.com"]
[Date "2024.02.27"]
[Round "5"]
[White "Vse_po_kaify"]
[Black "N4700000"]
[Result "1-0"]
[WhiteElo "2201"]
[BlackElo "2449"]
[TimeControl "180+1"]
[EndTime "8:53:39 PST"]
[Termination "Vse_po_kaify won by resignation"]

1. e4 {[%clk 0:02:51]} 1... c5 {[%clk 0:03:00.2]} 2. c4 {[%clk 0:02:49.6]} 2...
Nc6 {[%clk 0:02:57.7]} 3. Nc3 {[%clk 0:02:50.2]} 3... e6 {[%clk 0:02:50.4]} 4.
g3 {[%clk 0:02:50.7]} 4... g6 {[%clk 0:02:46.6]} 5. Bg2 {[%clk 0:02:51.2]} 5...
Bg7 {[%clk 0:02:46.7]} 6. Nge2 {[%clk 0:02:51.8]} 6... Nge7 {[%clk 0:02:44]} 7.
d3 {[%clk 0:02:52.4]} 7... d6 {[%clk 0:02:43.1]} 8. O-O {[%clk 0:02:52.8]} 8...
h5 {[%clk 0:02:39.7]} 9. h3 {[%clk 0:02:52.2]} 9... h4 {[%clk 0:02:37.3]} 10. g4
{[%clk 0:02:51.7]} 10... e5 {[%clk 0:02:21.5]} 11. f4 {[%clk 0:02:50.6]} 11...
exf4 {[%clk 0:02:20.9]} 12. Nxf4 {[%clk 0:02:46.8]} 12... Nd4 {[%clk 0:02:04.1]}
13. Nfd5 {[%clk 0:02:41]} 13... Nxd5 {[%clk 0:01:58.9]} 14. Nxd5 {[%clk
0:02:39]} 14... O-O {[%clk 0:01:42.9]} 15. g5 {[%clk 0:02:35.9]} 15... f5 {[%clk
0:01:03.6]} 16. gxf6 {[%clk 0:02:22.6]} 16... Bxf6 {[%clk 0:01:03.5]} 17. Bh6
{[%clk 0:02:16.1]} 17... Rf7 {[%clk 0:00:57.6]} 18. Qd2 {[%clk 0:02:03.8]} 18...
Be6 {[%clk 0:00:41.1]} 19. Nxf6+ {[%clk 0:01:44.6]} 19... Rxf6 {[%clk
0:00:40.9]} 20. Bg5 {[%clk 0:01:45.3]} 20... Rxf1+ {[%clk 0:00:38.7]} 21. Rxf1
{[%clk 0:01:46.2]} 21... Qd7 {[%clk 0:00:36]} 22. Bxh4 {[%clk 0:01:41.7]} 22...
Bxh3 {[%clk 0:00:27.1]} 23. Rf6 {[%clk 0:01:40]} 23... Qg4 {[%clk 0:00:24.5]}
24. Qg5 {[%clk 0:01:12.4]} 24... Qxg5 {[%clk 0:00:14.6]} 25. Bxg5 {[%clk
0:01:13.3]} 25... Bxg2 {[%clk 0:00:14.8]} 26. Kxg2 {[%clk 0:01:13.4]} 26... Kg7
{[%clk 0:00:13]} 27. Rxd6 {[%clk 0:01:12.7]} 27... Rf8 {[%clk 0:00:13.5]} 28.
Be3 {[%clk 0:01:01.6]} 28... Nc6 {[%clk 0:00:11.4]} 29. Rd7+ {[%clk 0:00:59.8]}
29... Rf7 {[%clk 0:00:11.2]} 30. Rxf7+ {[%clk 0:00:58.9]} 30... Kxf7 {[%clk
0:00:12.1]} 31. Bxc5 {[%clk 0:00:59.3]} 31... Ne5 {[%clk 0:00:11.6]} 32. Bxa7
{[%clk 0:00:54.6]} 32... Nxd3 {[%clk 0:00:12.2]} 33. Bd4 {[%clk 0:00:54.7]}
33... Ke6 {[%clk 0:00:10.9]} 34. Kf3 {[%clk 0:00:52.6]} 34... Nc1 {[%clk
0:00:10.6]} 35. a3 {[%clk 0:00:49.5]} 35... Nb3 {[%clk 0:00:10.9]} 36. Bc3
{[%clk 0:00:49.5]} 36... Nc5 {[%clk 0:00:10.6]} 37. b4 {[%clk 0:00:47.4]} 37...
Na4 {[%clk 0:00:08.4]} 38. Bd4 {[%clk 0:00:47.3]} 1-0

[Event "Early-Titled-Tuesday-Blitz-February-27-2024"]
[Site "Chess.com"]
[Date "2024.02.27"]
[Round "5"]
[White "UnTucopalaTimba"]
[Black "Happy1712Drummer"]
[Result "0-1"]
[WhiteElo "1983"]
[BlackElo "2395"]
[TimeControl "180+1"]
[EndTime "8:53:41 PST"]
[Termination "Happy1712Drummer won by resignation"]

1. e4 {[%clk 0:02:59.5]} 1... c6 {[%clk 0:02:59.5]} 2. d4 {[%clk 0:02:57]} 2...
d5 {[%clk 0:02:59.8]} 3. Nc3 {[%clk 0:02:56.9]} 3... dxe4 {[%clk 0:02:59.3]} 4.
Nxe4 {[%clk 0:02:56.8]} 4... Nf6 {[%clk 0:03:00.2]} 5. Nxf6+ {[%clk 0:02:54.8]}
5... exf6 {[%clk 0:03:01.1]} 6. c3 {[%clk 0:02:54.3]} 6... Bd6 {[%clk
0:03:01.1]} 7. Bd3 {[%clk 0:02:53]} 7... Na6 {[%clk 0:03:01.4]} 8. Ne2 {[%clk
0:02:43.1]} 8... Nc7 {[%clk 0:03:00.9]} 9. Qc2 {[%clk 0:02:41.7]} 9... h5 {[%clk
0:03:00.2]} 10. Bf4 {[%clk 0:02:37.3]} 10... Nd5 {[%clk 0:02:40.4]} 11. Bxd6
{[%clk 0:02:35.4]} 11... Qxd6 {[%clk 0:02:41.3]} 12. O-O {[%clk 0:02:31.3]}
12... Kf8 {[%clk 0:02:31.8]} 13. Rfe1 {[%clk 0:02:21.9]} 13... Be6 {[%clk
0:02:30.2]} 14. a3 {[%clk 0:02:12.6]} 14... g6 {[%clk 0:02:12.6]} 15. Ng3 {[%clk
0:02:00.6]} 15... Kg7 {[%clk 0:02:06.7]} 16. Ne4 {[%clk 0:01:58.8]} 16... Qc7
{[%clk 0:01:55.4]} 17. Nc5 {[%clk 0:01:58.5]} 17... Bg4 {[%clk 0:01:43.8]} 18.
h3 {[%clk 0:01:27.9]} 18... b6 {[%clk 0:01:17.2]} 19. Ne4 {[%clk 0:01:20.5]}
19... Be6 {[%clk 0:01:00.7]} 20. Rad1 {[%clk 0:01:05.8]} 20... Nf4 {[%clk
0:00:59.4]} 21. Bf1 {[%clk 0:01:01.6]} 21... Rae8 {[%clk 0:00:56.5]} 22. Nd2
{[%clk 0:00:51.6]} 22... Bf5 {[%clk 0:00:53.6]} 23. Ne4 {[%clk 0:00:46.9]} 23...
Qd7 {[%clk 0:00:38.3]} 24. Qd2 {[%clk 0:00:26.6]} 24... Nxh3+ {[%clk 0:00:29.1]}
25. gxh3 {[%clk 0:00:25.8]} 25... Bxe4 {[%clk 0:00:29]} 26. Qf4 {[%clk
0:00:20.5]} 26... Bf5 {[%clk 0:00:27.2]} 27. Bg2 {[%clk 0:00:19.3]} 27... Bxh3
{[%clk 0:00:24.3]} 28. Qg3 {[%clk 0:00:19]} 28... Bxg2 {[%clk 0:00:23.3]} 29.
Qxg2 {[%clk 0:00:19.9]} 29... h4 {[%clk 0:00:22.1]} 30. Qh3 {[%clk 0:00:18.9]}
30... Qxh3 {[%clk 0:00:21.6]} 0-1

[Event "Early-Titled-Tuesday-Blitz-February-27-2024"]
[Site "Chess.com"]
[Date "2024.02.27"]
[Round "5"]
[White "Der_Balak_3Halak"]
[Black "Roman_Ovetchkin"]
[Result "1-0"]
[WhiteElo "2458"]
[BlackElo "2587"]
[TimeControl "180+1"]
[EndTime "8:53:42 PST"]
[Termination "Der_Balak_3Halak won on time"]

1. e4 {[%clk 0:02:18.1]} 1... e5 {[%clk 0:02:58.8]} 2. Nf3 {[%clk 0:02:18.7]}
2... Nc6 {[%clk 0:02:58.4]} 3. Bb5 {[%clk 0:02:19.4]} 3... a6 {[%clk 0:02:55.9]}
4. Bxc6 {[%clk 0:02:19.1]} 4... dxc6 {[%clk 0:02:55.7]} 5. O-O {[%clk 0:02:20]}
5... Ne7 {[%clk 0:02:50.2]} 6. c3 {[%clk 0:02:10.3]} 6... Ng6 {[%clk 0:02:43.4]}
7. d4 {[%clk 0:02:08.7]} 7... Bg4 {[%clk 0:01:53.5]} 8. Be3 {[%clk 0:02:02.8]}
8... Bd6 {[%clk 0:01:52.2]} 9. h3 {[%clk 0:02:00.3]} 9... Be6 {[%clk 0:01:51.1]}
10. Nbd2 {[%clk 0:01:55.7]} 10... h6 {[%clk 0:01:40.1]} 11. Qe2 {[%clk
0:01:39.5]} 11... Qe7 {[%clk 0:01:35.6]} 12. Nc4 {[%clk 0:01:37.5]} 12... Bxc4
{[%clk 0:01:34.6]} 13. Qxc4 {[%clk 0:01:38.4]} 13... O-O-O {[%clk 0:01:01.5]}
14. Rfe1 {[%clk 0:00:58.7]} 14... Rhe8 {[%clk 0:00:54.4]} 15. a4 {[%clk
0:00:56.5]} 15... exd4 {[%clk 0:00:47.5]} 16. Bxd4 {[%clk 0:00:56.8]} 16... f6
{[%clk 0:00:46.1]} 17. b4 {[%clk 0:00:53.6]} 17... Qe6 {[%clk 0:00:36.2]} 18.
Nd2 {[%clk 0:00:38.1]} 18... Bf4 {[%clk 0:00:32.9]} 19. Qxe6+ {[%clk 0:00:30.1]}
19... Rxe6 {[%clk 0:00:33.8]} 20. Nc4 {[%clk 0:00:30.6]} 20... Rde8 {[%clk
0:00:28.4]} 21. f3 {[%clk 0:00:27.2]} 21... Bg3 {[%clk 0:00:24.1]} 22. Red1
{[%clk 0:00:20.6]} 22... Nf4 {[%clk 0:00:22.8]} 23. b5 {[%clk 0:00:21.1]} 23...
Ne2+ {[%clk 0:00:03.3]} 24. Kf1 {[%clk 0:00:21.2]} 24... Nxd4 {[%clk 0:00:01.8]}
25. Rxd4 {[%clk 0:00:21.3]} 25... c5 {[%clk 0:00:01]} 26. Rd5 {[%clk 0:00:20.9]}
1-0

[Event "Early-Titled-Tuesday-Blitz-February-27-2024"]
[Site "Chess.com"]
[Date "2024.02.27"]
[Round "5"]
[White "salomez"]
[Black "NLLO777"]
[Result "0-1"]
[WhiteElo "2328"]
[BlackElo "2547"]
[TimeControl "180+1"]
[EndTime "8:53:42 PST"]
[Termination "NLLO777 won on time"]

1. e4 {[%clk 0:01:15.6]} 1... c6 {[%clk 0:02:57.7]} 2. d4 {[%clk 0:01:14.1]}
2... d5 {[%clk 0:02:58.6]} 3. exd5 {[%clk 0:01:14.9]} 3... cxd5 {[%clk
0:02:58.3]} 4. Bd3 {[%clk 0:01:15.8]} 4... Nc6 {[%clk 0:02:58.9]} 5. c3 {[%clk
0:01:14.4]} 5... Nf6 {[%clk 0:02:58.5]} 6. Bf4 {[%clk 0:01:13.1]} 6... e6 {[%clk
0:02:53.8]} 7. Nf3 {[%clk 0:01:06.9]} 7... Bd6 {[%clk 0:02:52.9]} 8. Ne5 {[%clk
0:01:07.1]} 8... O-O {[%clk 0:02:51.6]} 9. Qe2 {[%clk 0:01:07.2]} 9... Qc7
{[%clk 0:02:47.9]} 10. O-O {[%clk 0:01:01.6]} 10... Nd7 {[%clk 0:02:38.3]} 11.
Re1 {[%clk 0:00:47]} 11... Ncxe5 {[%clk 0:02:35.6]} 12. dxe5 {[%clk 0:00:44.3]}
12... Be7 {[%clk 0:02:35.7]} 13. Nd2 {[%clk 0:00:34]} 13... b6 {[%clk
0:02:26.4]} 14. Nf3 {[%clk 0:00:29]} 14... Nc5 {[%clk 0:02:25.5]} 15. Bc2 {[%clk
0:00:26]} 15... a5 {[%clk 0:02:25.1]} 16. Nd4 {[%clk 0:00:21.8]} 16... Ba6
{[%clk 0:02:22.9]} 17. Qh5 {[%clk 0:00:19.5]} 17... Bd3 {[%clk 0:02:19.1]} 18.
Rad1 {[%clk 0:00:15.3]} 18... Bxc2 {[%clk 0:02:17.1]} 19. Nxc2 {[%clk
0:00:16.2]} 19... g6 {[%clk 0:01:58.9]} 20. Qh6 {[%clk 0:00:15]} 20... Rfc8
{[%clk 0:01:56.5]} 21. Bg5 {[%clk 0:00:12.5]} 21... Bf8 {[%clk 0:01:56.8]} 22.
Qh4 {[%clk 0:00:12.5]} 22... b5 {[%clk 0:01:52.7]} 23. Nd4 {[%clk 0:00:12.3]}
23... b4 {[%clk 0:01:51.4]} 24. Re3 {[%clk 0:00:11.3]} 24... bxc3 {[%clk
0:01:48.9]} 25. Rxc3 {[%clk 0:00:10.5]} 25... Qxe5 {[%clk 0:01:45.2]} 26. Bf6
{[%clk 0:00:09.5]} 26... Qe4 {[%clk 0:01:41.4]} 27. Qg5 {[%clk 0:00:05.4]} 27...
Nd7 {[%clk 0:00:47.4]} 28. Rh3 {[%clk 0:00:06.3]} 28... Nxf6 {[%clk 0:00:45]}
29. Qxf6 {[%clk 0:00:06.4]} 29... Bg7 {[%clk 0:00:45.6]} 30. Qe7 {[%clk
0:00:02]} 30... Bxd4 {[%clk 0:00:42.9]} 31. Rf3 {[%clk 0:00:02.1]} 31... Rf8
{[%clk 0:00:36.6]} 0-1

[Event "Early-Titled-Tuesday-Blitz-February-27-2024"]
[Site "Chess.com"]
[Date "2024.02.27"]
[Round "5"]
[White "RantomOpening"]
[Black "Preobrazhenska_D2011"]
[Result "1-0"]
[WhiteElo "2590"]
[BlackElo "2432"]
[TimeControl "180+1"]
[EndTime "8:53:45 PST"]
[Termination "RantomOpening won by checkmate"]

1. c4 {[%clk 0:02:58.9]} 1... e5 {[%clk 0:02:59.6]} 2. Nc3 {[%clk 0:02:58.9]}
2... Nf6 {[%clk 0:02:59.7]} 3. Nf3 {[%clk 0:02:59]} 3... Nc6 {[%clk 0:02:58.4]}
4. e3 {[%clk 0:02:59.5]} 4... d5 {[%clk 0:02:55.3]} 5. cxd5 {[%clk 0:03:00.4]}
5... Nxd5 {[%clk 0:02:55.7]} 6. Bb5 {[%clk 0:03:00]} 6... Nxc3 {[%clk
0:02:40.5]} 7. bxc3 {[%clk 0:02:59.9]} 7... Bd6 {[%clk 0:02:30.1]} 8. d4 {[%clk
0:03:00]} 8... exd4 {[%clk 0:02:25.5]} 9. cxd4 {[%clk 0:02:57]} 9... O-O {[%clk
0:02:23.8]} 10. O-O {[%clk 0:02:56.9]} 10... Bg4 {[%clk 0:02:21.9]} 11. Be2
{[%clk 0:02:56.8]} 11... Re8 {[%clk 0:02:20.3]} 12. h3 {[%clk 0:02:56.9]} 12...
Bh5 {[%clk 0:02:20.2]} 13. Rb1 {[%clk 0:02:56.7]} 13... Qc8 {[%clk 0:02:13]} 14.
a4 {[%clk 0:02:52.8]} 14... Nb4 {[%clk 0:01:58.9]} 15. Nh4 {[%clk 0:02:39.6]}
15... Bxe2 {[%clk 0:01:57.2]} 16. Qxe2 {[%clk 0:02:40.5]} 16... Nd5 {[%clk
0:01:56.4]} 17. Bd2 {[%clk 0:02:36.3]} 17... b6 {[%clk 0:01:34.8]} 18. e4 {[%clk
0:02:32.1]} 18... Nf4 {[%clk 0:01:17.3]} 19. Qf3 {[%clk 0:02:23.4]} 19... Ne6
{[%clk 0:01:12.1]} 20. Be3 {[%clk 0:02:18.9]} 20... c6 {[%clk 0:01:05.5]} 21.
Nf5 {[%clk 0:02:16.8]} 21... Bb8 {[%clk 0:01:03.4]} 22. d5 {[%clk 0:02:13]}
22... Nf8 {[%clk 0:00:48.6]} 23. Rbc1 {[%clk 0:01:53.6]} 23... c5 {[%clk
0:00:47.6]} 24. Bf4 {[%clk 0:01:48.5]} 24... Ng6 {[%clk 0:00:40.4]} 25. Bxb8
{[%clk 0:01:46.2]} 25... Qxb8 {[%clk 0:00:41.3]} 26. Rfe1 {[%clk 0:01:43.6]}
26... Qe5 {[%clk 0:00:36.8]} 27. Qe3 {[%clk 0:01:40.5]} 27... Nf4 {[%clk
0:00:32.1]} 28. Qg3 {[%clk 0:01:39.6]} 28... g6 {[%clk 0:00:26.5]} 29. Ne3
{[%clk 0:01:37.1]} 29... Nd3 {[%clk 0:00:24.5]} 30. Qxe5 {[%clk 0:01:37.3]}
30... Rxe5 {[%clk 0:00:22.9]} 31. Nc4 {[%clk 0:01:37.7]} 31... Ree8 {[%clk
0:00:18.8]} 32. e5 {[%clk 0:01:38.2]} 32... Nxc1 {[%clk 0:00:17.6]} 33. Rxc1
{[%clk 0:01:38.5]} 33... Rad8 {[%clk 0:00:18.3]} 34. d6 {[%clk 0:01:39]} 34...
a6 {[%clk 0:00:17.8]} 35. f4 {[%clk 0:01:37.7]} 35... b5 {[%clk 0:00:18]} 36.
axb5 {[%clk 0:01:38.6]} 36... axb5 {[%clk 0:00:18.9]} 37. Na5 {[%clk 0:01:39.1]}
37... c4 {[%clk 0:00:15.1]} 38. Nc6 {[%clk 0:01:39.4]} 38... Rf8 {[%clk
0:00:14.2]} 39. Nxd8 {[%clk 0:01:30.9]} 39... Rxd8 {[%clk 0:00:15.1]} 40. Kf2
{[%clk 0:01:31.4]} 40... Kf8 {[%clk 0:00:14]} 41. Ke3 {[%clk 0:01:31.5]} 41...
Ke8 {[%clk 0:00:14.2]} 42. Kd4 {[%clk 0:01:31.8]} 42... Rc8 {[%clk 0:00:14]} 43.
Kd5 {[%clk 0:01:30.7]} 43... Kd7 {[%clk 0:00:14.4]} 44. g4 {[%clk 0:01:31.2]}
44... c3 {[%clk 0:00:14.5]} 45. f5 {[%clk 0:01:30.7]} 45... b4 {[%clk
0:00:07.5]} 46. e6+ {[%clk 0:01:30.6]} 46... fxe6+ {[%clk 0:00:07.7]} 47. fxe6+
{[%clk 0:01:31.5]} 47... Kd8 {[%clk 0:00:08.1]} 48. Rf1 {[%clk 0:01:30.6]} 48...
Ke8 {[%clk 0:00:02.5]} 49. d7+ {[%clk 0:01:30.6]} 49... Kd8 {[%clk 0:00:01.8]}
50. Rf8+ {[%clk 0:01:30.6]} 50... Ke7 {[%clk 0:00:02.3]} 51. Rf7+ {[%clk
0:01:30.3]} 51... Kd8 {[%clk 0:00:02.6]} 52. Kd6 {[%clk 0:01:29.6]} 52... Rc4
{[%clk 0:00:02]} 53. e7# {[%clk 0:01:29.4]} 1-0